fUSD/lending_fUSD_20240218
["ID","MTS","AMOUNT","RATE_DAILY","PERIOD"]
[314364925,1708235446197,-1528.03,0.00037988,2]
[314364926,1708235446206,-437.98918361,0.00037988,2]
[314364927,1708235446215,-500.0,0.00037988,2]
[314364928,1708235446224,-500.0,0.00037988,2]
[314364929,1708235446233,-500.0,0.00037988,2]
[314364930,1708235446242,-500.0,0.00037988,2]
[314364931,1708235446251,-500.0,0.00037988,2]
[314364932,1708235446260,-500.0,0.00037988,2]
[314364933,1708235446270,-360.61542099,0.00037988,2]
[314364934,1708235446279,-577.85090558,0.00037988,2]
[314364935,1708235446288,-500.0,0.00037988,2]
[314364936,1708235446297,-500.0,0.00037988,2]
[314364937,1708235446306,-500.0,0.00037988,2]
[314364938,1708235446315,-500.0,0.00037988,2]
[314364939,1708235446324,-500.0,0.00037988,2]
[314364940,1708235446333,-500.0,0.00037988,2]
[314364941,1708235446342,-500.0,0.00037988,2]
[314364942,1708235446351,-500.0,0.00037988,2]
[314364943,1708235446360,-612.42,0.00037988,2]
[314364944,1708235446369,-595.04405788,0.00037988,2]
[314364945,1708235446378,-500.0,0.00037988,2]
[314364946,1708235446388,-500.0,0.00037988,2]
[314364947,1708235446397,-500.0,0.00037988,2]
[314364948,1708235446406,-500.0,0.00037988,2]
[314364949,1708235446415,-500.0,0.00037988,2]
[314364950,1708235446424,-500.0,0.00037988,2]
[314364951,1708235446433,-500.0,0.00037988,2]
[314364952,1708235446443,-175.74961008,0.00037988,2]
[314364953,1708235446453,-535.39,0.00037988,2]
[314364954,1708235446463,-500.0,0.00037988,2]
[314364955,1708235446473,-500.0,0.00037988,2]
[314364956,1708235446482,-562.38092717,0.00037988,2]
[314364957,1708235446491,-500.0,0.00037988,2]
[314364958,1708235446500,-780.48,0.00037988,2]
[314364959,1708235446509,-500.0,0.00037988,2]
[314364960,1708235446518,-500.0,0.00037988,2]
[314364961,1708235446527,-500.0,0.00037988,2]
[314364962,1708235446535,-181.27034435,0.00037988,2]
[314364963,1708235446544,-500.0,0.00037988,2]
[314364964,1708235446554,-500.0,0.00037988,2]
[314364965,1708235446564,-500.0,0.00037988,2]
[314364966,1708235446572,-500.0,0.00037988,2]
[314364967,1708235446581,-500.0,0.00037988,2]
[314364968,1708235446590,-500.0,0.00037988,2]
[314364969,1708235446599,-500.0,0.00037988,2]
[314364970,1708235446608,-500.0,0.00037988,2]
[314364971,1708235446618,-500.0,0.00037988,2]
[314364972,1708235446627,-342.57052634,0.00037988,2]
[314364973,1708235446636,-500.0,0.00037988,2]
[314364974,1708235446645,-500.0,0.00037988,2]
[314364975,1708235446654,-689.54,0.00037988,2]
[314364976,1708235446663,-500.0,0.00037988,2]
[314364977,1708235446673,-500.0,0.00037988,2]
[314364978,1708235446682,-500.0,0.00037988,2]
[314364979,1708235446691,-500.0,0.00037988,2]
[314364980,1708235446700,-500.0,0.00037988,2]
[314364981,1708235446709,-102713.63654534,0.00037988,3]
[314364982,1708235447120,-284.83040661,0.00037986,4]
[314364983,1708235447130,-500.0,0.00037987,2]
[314364984,1708235447140,-500.0,0.00037988,2]
[314364985,1708235447149,-500.0,0.00037988,2]
[314364986,1708235447158,-8536.6521334,0.00037988,3]
[314364987,1708235447170,-364.69977587,0.00037988,3]
[314364988,1708235447196,-436.30434557,0.00037988,3]
[314364989,1708235447231,-572.95084273,0.00037988,3]
[314364990,1708235514450,1500.0,0.00022789,2]
[314364991,1708235514669,1500.0,0.00022789,2]
[314364992,1708235514696,1500.0,0.00022789,2]
[314364993,1708235514719,853.48305843,0.00022789,2]
[314364994,1708235631214,646.51694157,0.00023,2]
[314364995,1708235631237,1500.0,0.00023,2]
[314364996,1708235631262,340302.43152526,0.00023,2]
[314365012,1708236632246,-1048.05810516,0.00024999,2]
[314365013,1708236632257,-396.45887972,0.00025,3]
[314365014,1708236632353,-353.54112028,0.00025,3]
[314365015,1708236632364,-211.99520263,0.00025072,2]
[314365016,1708236632374,-155.0,0.00025086,2]
[314365017,1708236632384,-3993.20715977,0.0002509,2]
[314365018,1708236632394,-800.0,0.00027,3]
[314365019,1708236632403,-192.95898654,0.000271,2]
[314365020,1708236632412,-1468.61532401,0.000272,2]
[314365021,1708236632422,-192.95898647,0.00027668,2]
[314365022,1708236632431,-192.95898647,0.00028236,2]
[314365023,1708236632441,-150.0,0.00028709,2]
[314365024,1708236632450,-174.69,0.0002871,2]
[314365025,1708236632459,-499.99,0.0002871,2]
[314365026,1708236632469,-150.99,0.0002871,2]
[314365027,1708236632479,-2756.1,0.0002871,2]
[314365028,1708236632488,-192.95898647,0.00028803,2]
[314365029,1708236632497,-850.0,0.00029,3]
[314365030,1708236632507,-192.95898647,0.00029371,2]
[314365031,1708236632516,-192.95898647,0.00029939,2]
[314365032,1708236632525,-296.72131859,0.000301,2]
[314365033,1708236632534,-192.95898647,0.00030507,2]
[314365034,1708236632543,-900.0,0.00031,3]
[314365035,1708236632553,-192.95898647,0.00031075,2]
[314365036,1708236632562,-192.95898647,0.00031642,2]
[314365037,1708236632571,-192.95898647,0.0003221,2]
[314365038,1708236632580,-192.95898647,0.00032778,2]
[314365039,1708236632589,-950.0,0.00033,3]
[314365040,1708236632599,-344.52,0.00033134,2]
[314365041,1708236632608,-192.95898647,0.00033346,2]
[314365042,1708236632618,-192.95898647,0.00033913,2]
[314365043,1708236632627,-416.38,0.00034308,2]
[314365044,1708236632637,-314.08,0.00034308,2]
[314365045,1708236632646,-250.0,0.00034368,2]
[314365046,1708236632655,-199.14,0.00034372,2]
[314365047,1708236632664,-181.77,0.00034377,2]
[314365048,1708236632673,-2000.0,0.00034439,2]
[314365049,1708236632683,-150.0,0.00034451,2]
[314365050,1708236632692,-200.0,0.0003448,2]
[314365051,1708236632701,-192.95898647,0.00034481,2]
[314365052,1708236632709,-150.0,0.00034512,2]
[314365053,1708236632718,-500.0,0.00034514,2]
[314365054,1708236632727,-172.58,0.00034521,2]
[314365055,1708236632736,-800.0,0.00034552,2]
[314365056,1708236632746,-155.36,0.00034773,2]
[314365057,1708236632755,-310.045367,0.000348,2]
[314365058,1708236632763,-1797.087207,0.000348,2]
[314365059,1708236632773,-1000.0,0.00035,3]
[314365060,1708236632781,-6724.89203212,0.00035,2]
[314365061,1708236632790,-192.95898647,0.00035049,2]
[314365062,1708236632800,-344.52,0.00035398,2]
[314365063,1708236632809,-1000.0,0.000356,2]
[314365064,1708236632818,-192.95898647,0.00035617,2]
[314365065,1708236632828,-250.0,0.00035753,2]
[314365066,1708236632837,-465.068051,0.000358,2]
[314365067,1708236632846,-2695.63081,0.000358,2]
[314365068,1708236632855,-2070.0,0.00036,2]
[314365069,1708236632864,-250.0,0.00036,120]
[314365070,1708236632874,-181.77,0.00036021,2]
[314365071,1708236632883,-155.31,0.0003606,2]
[314365072,1708236632893,-200.0,0.00036118,2]
[314365073,1708236632902,-153.8,0.00036147,2]
[314365074,1708236632911,-192.95898647,0.00036185,2]
[314365075,1708236632920,-1238.39,0.0003628,2]
[314365076,1708236632929,-155.36,0.00036585,2]
[314365077,1708236632938,-192.95898647,0.00036752,2]
[314365078,1708236632947,-620.090735,0.000368,2]
[314365079,1708236632956,-3594.174414,0.000368,2]
[314365080,1708236632965,-250.0,0.00037,120]
[314365081,1708236632975,-153.73380495,0.00037,12]
[314365082,1708236632984,-1050.0,0.00037,3]
[314365083,1708236632993,-172.58,0.00037075,2]
[314365084,1708236633002,-150.0,0.00037235,2]
[314365085,1708236633011,-25805.55262665,0.0003729,2]
[314365086,1708236633021,-13332.0,0.000373,2]
[314365087,1708236633031,-192.95898647,0.0003732,2]
[314365088,1708236633040,-800.0,0.00037425,2]
[314365089,1708236633049,-150.0,0.00037528,2]
[314365090,1708236633058,-922.61154124,0.00037554,2]
[314365091,1708236633067,-344.52,0.00037662,2]
[314365092,1708236633076,-181.77,0.00037665,2]
[314365093,1708236633086,-173.93535171,0.00037686,2]
[314365094,1708236633095,-150.0,0.00037694,2]
[314365095,1708236633104,-150.0,0.00037703,2]
[314365096,1708236633114,-19808.43895128,0.0003771,2]
[314365097,1708236633123,-150.0,0.00037786,2]
[314365098,1708236633133,-1131.49012854,0.000378,2]
[314365099,1708236633142,-150.0,0.00037837,2]
[314365100,1708236633150,-228.91,0.00037862,2]
[314365101,1708236633159,-165.81409443,0.00037876,8]
[314365102,1708236633171,-531.97518779,0.00037877,2]
[314365103,1708236633185,-996.2606794,0.00037878,2]
[314365104,1708236633200,-405.82324908,0.00037878,2]
[314365105,1708236633215,-6387.75244296,0.00037879,2]
[314365106,1708236633230,-800.0,0.00037879,2]
[314365107,1708236633284,-984.56193428,0.00037879,2]
[314365108,1708236633301,-353.62981947,0.00037879,2]
[314365109,1708236633317,-1778.08920812,0.00037879,2]
[314365110,1708236633332,-13649.98189517,0.00037879,2]
[314365111,1708236633346,-500.0,0.00037879,2]
[314365112,1708236633359,-3580.69024738,0.00037885,11]
[314365113,1708236633372,-161.291493,0.00037886,2]
[314365114,1708236633384,-673.54013024,0.00037887,2]
[314365115,1708236633398,-1757.98587959,0.00037887,2]
[314365116,1708236633411,-551.29257736,0.00037887,2]
[314365117,1708236633423,-192.95898647,0.00037888,2]
[314365118,1708236633434,-2644.59113057,0.00037896,2]
[314365119,1708236633448,-173.63665388,0.00037896,2]
[314365120,1708236633461,-596.05052075,0.00037899,2]
[314365121,1708236633474,-9287.6677247,0.000379,2]
[314365122,1708236633486,-9287.66772452,0.000379,2]
[314365123,1708236633498,-9287.66772452,0.000379,2]
[314365124,1708236633510,-9287.66772452,0.000379,2]
[314365125,1708236633522,-9287.66772452,0.000379,2]
[314365126,1708236633534,-5363.63677066,0.000379,2]
[314365127,1708236638286,-939.19740227,0.00025,2]
[314365128,1708236638299,-150.0,0.00036992,2]
[314365129,1708236638311,-150.0,0.00037291,2]
[314365130,1708236638323,-3924.03095386,0.000379,2]
[314365131,1708236638336,-4259.56983098,0.000379,2]
[314365132,1708236638450,-5028.09789354,0.000379,2]
[314365133,1708236638462,-9287.66772452,0.000379,2]
[314365134,1708236638474,-9287.66772452,0.000379,2]
[314365135,1708236638486,-4542.82034899,0.000379,2]
[314365136,1708236638569,-771.11067838,0.000379,2]
[314365137,1708236638584,-1236.4611275,0.000379,2]
[314365138,1708236641003,-1769.48740449,0.000379,2]
[314365139,1708236641760,-774.885,0.000379,2]
[314365140,1708236641772,-192.90316516,0.000379,2]
[314365141,1708236641782,-743.57386534,0.000379,2]
[314365142,1708236641922,-8544.09385918,0.000379,2]
[314365143,1708236641931,-9287.66772452,0.000379,2]
[314365144,1708236641940,-9287.66772452,0.000379,2]
[314365145,1708236641949,-9287.66772452,0.000379,2]
[314365146,1708236641958,-9287.66772452,0.000379,2]
[314365147,1708236641968,-9287.66772452,0.000379,2]
[314365148,1708236641977,-9287.66772452,0.000379,2]
[314365149,1708236641986,-9287.66772452,0.000379,2]
[314365150,1708236641995,-9287.66772452,0.000379,2]
[314365151,1708236642004,-9287.66772452,0.000379,2]
[314365152,1708236642014,-405.82324905,0.00037905,2]
[314365153,1708236642022,-150.0,0.0003792,2]
[314365154,1708236642032,-150.0,0.00037924,2]
[314365155,1708236642041,-173.93535162,0.0003793,2]
[314365156,1708236642050,-405.82324905,0.00037931,2]
[314365157,1708236642059,-150.0,0.00037949,2]
[314365158,1708236642068,-405.82324905,0.00037958,2]
[314365159,1708236642078,-162.76511745,0.00037966,2]
[314365160,1708236642086,-531.97518779,0.00037967,2]
[314365161,1708236642096,-73931.82026829,0.00037968,3]
[314365162,1708236642112,-1430.18375976,0.00037968,3]
[314365173,1708236643292,-284.83040661,0.00037899,4]
[314365174,1708236643301,-67.90811148,0.00037968,3]
[314365175,1708236643357,-2218.67425899,0.00037968,3]
[314365176,1708236643374,-2205.45883256,0.00037968,3]
[314365177,1708236643387,-7810.65,0.00037968,3]
[314365178,1708236643405,-1560.48880542,0.00037968,3]
[314365179,1708236643415,-115.67452971,0.00037973,2]
[314365180,1708236643428,-684.32547029,0.00037973,2]
[314365181,1708236643438,-500.0,0.00037975,2]
[314365182,1708236643448,-3430.77,0.00037975,2]
[314365183,1708236643457,-366.59494908,0.00037975,2]
[314365184,1708236643502,-133.40505092,0.00037975,2]
[314365185,1708236643512,-316.59494908,0.00037975,2]
[314365186,1708236643528,-183.40505092,0.00037975,2]
[314365187,1708236643538,-500.0,0.00037975,2]
[314365188,1708236643548,-500.0,0.00037975,2]
[314365189,1708236643558,-500.0,0.00037975,2]
[314365190,1708236643567,-500.0,0.00037975,2]
[314365191,1708236643577,-500.0,0.00037975,2]
[314365192,1708236643587,-500.0,0.00037975,2]
[314365193,1708236643596,-500.0,0.00037975,2]
[314365194,1708236643606,-619.98,0.00037975,2]
[314365195,1708236643616,-500.0,0.00037975,2]
[314365196,1708236643626,-500.0,0.00037975,2]
[314365197,1708236643636,-5111.73,0.00037975,2]
[314365198,1708236643645,-500.0,0.00037975,2]
[314365199,1708236643655,-500.0,0.00037975,2]
[314365200,1708236643664,-500.0,0.00037975,2]
[314365201,1708236643674,-500.0,0.00037975,2]
[314365202,1708236643683,-500.0,0.00037975,2]
[314365203,1708236643693,-500.0,0.00037975,2]
[314365204,1708236643702,-500.0,0.00037975,2]
[314365205,1708236643711,-240.15138974,0.00037975,2]
[314365206,1708236643721,-500.0,0.00037975,2]
[314365207,1708236643730,-500.0,0.00037975,2]
[314365208,1708236643739,-500.0,0.00037975,2]
[314365209,1708236643749,-500.0,0.00037975,2]
[314365210,1708236643759,-500.0,0.00037975,2]
[314365211,1708236643768,-3612.91,0.00037975,2]
[314365212,1708236643777,-1504.59,0.00037975,2]
[314365213,1708236643786,-2461.5,0.00037975,2]
[314365214,1708236643798,-634.6209432,0.00037975,2]
[314365215,1708236643808,-500.0,0.00037975,2]
[314365216,1708236643817,-500.0,0.00037975,2]
[314365217,1708236643827,-583.64,0.00037975,2]
[314365218,1708236643837,-500.0,0.00037975,2]
[314365219,1708236643846,-500.0,0.00037975,2]
[314365220,1708236643855,-13662.15,0.00037975,2]
[314365221,1708236643865,-524.15724077,0.00037976,2]
[314365222,1708236643874,-529.82512964,0.00037976,2]
[314365223,1708236643884,-883.59,0.00037976,2]
[314365224,1708236643893,-500.0,0.00037976,2]
[314365225,1708236643903,-500.0,0.00037976,2]
[314365226,1708236643913,-500.0,0.00037976,2]
[314365227,1708236643922,-500.0,0.00037976,2]
[314365228,1708236643931,-500.0,0.00037976,2]
[314365229,1708236643941,-500.0,0.00037976,2]
[314365230,1708236643950,-500.0,0.00037976,2]
[314365231,1708236643960,-500.0,0.00037976,2]
[314365232,1708236643969,-500.0,0.00037976,2]
[314365233,1708236643979,-500.0,0.00037976,2]
[314365234,1708236643989,-500.0,0.00037976,2]
[314365235,1708236643998,-500.0,0.00037976,2]
[314365236,1708236644007,-500.0,0.00037976,2]
[314365237,1708236644016,-500.0,0.00037976,2]
[314365238,1708236644026,-500.0,0.00037976,2]
[314365239,1708236644036,-535.15937453,0.00037976,2]
[314365240,1708236644045,-500.0,0.00037976,2]
[314365241,1708236644055,-500.0,0.00037976,2]
[314365242,1708236644068,-500.0,0.00037976,2]
[314365243,1708236644078,-500.0,0.00037976,2]
[314365244,1708236644088,-500.0,0.00037976,2]
[314365245,1708236644098,-500.0,0.00037976,2]
[314365246,1708236644107,-500.0,0.00037976,2]
[314365247,1708236644117,-760.3,0.00037976,7]
[314365248,1708236644127,-500.0,0.00037976,2]
[314365249,1708236644136,-519.5087692,0.00037976,2]
[314365250,1708236644146,-500.0,0.00037976,2]
[314365251,1708236644155,-500.0,0.00037976,2]
[314365252,1708236644165,-315.0,0.00037976,2]
[314365253,1708236644174,-500.0,0.00037976,2]
[314365254,1708236644184,-500.0,0.00037976,2]
[314365255,1708236644194,-500.0,0.00037976,2]
[314365256,1708236644203,-500.0,0.00037976,2]
[314365257,1708236644212,-500.0,0.00037976,2]
[314365258,1708236644222,-520.57,0.00037976,2]
[314365259,1708236644231,-500.0,0.00037976,2]
[314365260,1708236644241,-500.0,0.00037976,2]
[314365261,1708236644250,-500.0,0.00037976,2]
[314365262,1708236644259,-500.0,0.00037976,2]
[314365263,1708236644270,-500.0,0.00037976,2]
[314365264,1708236644280,-454.24160214,0.00037976,2]
[314365265,1708236644290,-500.0,0.00037976,2]
[314365266,1708236644300,-500.0,0.00037976,2]
[314365267,1708236644310,-500.0,0.00037976,2]
[314365268,1708236644321,-500.0,0.00037976,2]
[314365269,1708236644331,-500.0,0.00037976,2]
[314365270,1708236644340,-500.0,0.00037976,2]
[314365271,1708236644351,-500.0,0.00037976,2]
[314365272,1708236644363,-500.0,0.00037976,2]
[314365273,1708236644373,-500.0,0.00037976,2]
[314365274,1708236644382,-500.0,0.00037976,2]
[314365275,1708236644393,-500.0,0.00037976,2]
[314365276,1708236644402,-500.0,0.00037976,2]
[314365277,1708236644412,-500.0,0.00037976,2]
[314365278,1708236644421,-161.02204642,0.00037976,2]
[314365279,1708236644430,-494.27605988,0.00037976,2]
[314365280,1708236644440,-500.0,0.00037976,2]
[314365281,1708236644450,-500.0,0.00037976,2]
[314365282,1708236644459,-500.0,0.00037976,2]
[314365283,1708236644468,-500.0,0.00037976,2]
[314365284,1708236644478,-500.0,0.00037976,2]
[314365285,1708236644488,-500.0,0.00037976,2]
[314365286,1708236644497,-500.0,0.00037976,2]
[314365287,1708236644510,-500.0,0.00037976,2]
[314365288,1708236644520,-500.0,0.00037976,2]
[314365289,1708236644530,-500.0,0.00037976,2]
[314365290,1708236644539,-500.0,0.00037976,2]
[314365291,1708236644549,-500.0,0.00037976,2]
[314365292,1708236644558,-500.0,0.00037976,2]
[314365293,1708236644568,-500.0,0.00037976,2]
[314365294,1708236644577,-500.0,0.00037976,2]
[314365295,1708236644586,-521.44010232,0.00037976,2]
[314365296,1708236644596,-500.0,0.00037976,2]
[314365297,1708236644605,-500.0,0.00037976,2]
[314365298,1708236644615,-538.41267553,0.00037976,2]
[314365299,1708236644624,-500.0,0.00037976,2]
[314365300,1708236644634,-500.0,0.00037976,2]
[314365301,1708236644643,-500.0,0.00037976,2]
[314365302,1708236644652,-530.67299263,0.00037976,2]
[314365303,1708236644661,-500.0,0.00037976,2]
[314365304,1708236644671,-500.0,0.00037976,2]
[314365305,1708236644680,-500.0,0.00037976,2]
[314365306,1708236644692,-500.0,0.00037976,2]
[314365307,1708236644728,-500.0,0.00037976,2]
[314365308,1708236644738,-638.84145949,0.00037976,2]
[314365309,1708236644747,-500.0,0.00037976,2]
[314365310,1708236644756,-500.0,0.00037976,2]
[314365311,1708236644766,-500.0,0.00037976,2]
[314365312,1708236644775,-500.0,0.00037976,2]
[314365313,1708236644784,-500.0,0.00037976,2]
[314365314,1708236644794,-500.0,0.00037976,2]
[314365315,1708236644803,-500.0,0.00037976,2]
[314365316,1708236644813,-500.0,0.00037976,2]
[314365317,1708236644822,-500.0,0.00037976,2]
[314365318,1708236644831,-500.0,0.00037976,2]
[314365319,1708236644840,-500.0,0.00037976,2]
[314365320,1708236644850,-500.0,0.00037976,2]
[314365321,1708236644860,-500.0,0.00037976,2]
[314365322,1708236644869,-500.0,0.00037976,2]
[314365323,1708236644879,-500.0,0.00037976,2]
[314365324,1708236644888,-500.0,0.00037976,2]
[314365325,1708236644898,-500.0,0.00037976,2]
[314365326,1708236644908,-500.0,0.00037976,2]
[314365327,1708236644918,-150.0,0.00037976,2]
[314365328,1708236644927,-500.0,0.00037976,2]
[314365329,1708236644937,-500.0,0.00037976,2]
[314365330,1708236644946,-500.0,0.00037976,2]
[314365331,1708236644955,-500.0,0.00037976,2]
[314365332,1708236644964,-500.0,0.00037976,2]
[314365333,1708236644975,-500.0,0.00037976,2]
[314365334,1708236644985,-500.0,0.00037976,2]
[314365335,1708236644995,-615.30824346,0.00037976,2]
[314365336,1708236645003,-500.0,0.00037976,2]
[314365337,1708236645013,-500.0,0.00037976,2]
[314365338,1708236645022,-500.0,0.00037976,2]
[314365339,1708236645032,-500.0,0.00037976,2]
[314365340,1708236645041,-576.65335061,0.00037976,2]
[314365341,1708236645050,-500.0,0.00037976,2]
[314365342,1708236645060,-544.73127283,0.00037976,2]
[314365343,1708236645078,-500.0,0.00037976,2]
[314365344,1708236645090,-500.0,0.00037976,2]
[314365345,1708236645100,-500.0,0.00037976,2]
[314365346,1708236645110,-500.0,0.00037976,2]
[314365347,1708236645121,-500.0,0.00037976,2]
[314365348,1708236645131,-500.0,0.00037976,2]
[314365349,1708236645142,-500.0,0.00037976,2]
[314365350,1708236645152,-500.0,0.00037976,2]
[314365351,1708236645162,-500.0,0.00037976,2]
[314365352,1708236645172,-500.0,0.00037976,2]
[314365353,1708236645183,-579.64948002,0.00037976,2]
[314365354,1708236645193,-500.0,0.00037976,2]
[314365355,1708236645203,-500.0,0.00037976,2]
[314365356,1708236645213,-500.0,0.00037976,2]
[314365357,1708236645223,-500.0,0.00037976,2]
[314365358,1708236645233,-500.0,0.00037976,2]
[314365359,1708236645243,-500.0,0.00037976,2]
[314365360,1708236645253,-500.0,0.00037976,2]
[314365361,1708236645264,-500.0,0.00037976,2]
[314365362,1708236645274,-500.0,0.00037976,2]
[314365363,1708236645284,-500.0,0.00037976,2]
[314365364,1708236645294,-641.74812113,0.00037976,2]
[314365365,1708236645304,-500.0,0.00037976,2]
[314365366,1708236645314,-565.2556347,0.00037976,10]
[314365367,1708236645324,-500.0,0.00037976,2]
[314365368,1708236645334,-500.0,0.00037976,2]
[314365369,1708236645344,-500.0,0.00037976,2]
[314365370,1708236645583,-500.0,0.00037976,2]
[314365371,1708236645593,-500.0,0.00037976,2]
[314365372,1708236645603,-500.0,0.00037976,2]
[314365373,1708236645613,-500.0,0.00037976,2]
[314365374,1708236645622,-500.0,0.00037976,2]
[314365375,1708236645631,-500.0,0.00037976,2]
[314365376,1708236645642,-500.0,0.00037976,2]
[314365377,1708236645652,-500.0,0.00037976,2]
[314365378,1708236645661,-500.0,0.00037976,2]
[314365379,1708236645671,-500.0,0.00037976,2]
[314365380,1708236645680,-500.0,0.00037976,2]
[314365381,1708236645690,-500.0,0.00037976,2]
[314365382,1708236645700,-500.0,0.00037976,2]
[314365383,1708236645709,-500.0,0.00037976,2]
[314365384,1708236645719,-500.0,0.00037976,2]
[314365385,1708236645728,-500.0,0.00037976,2]
[314365386,1708236645737,-500.0,0.00037976,2]
[314365387,1708236645746,-500.0,0.00037976,2]
[314365388,1708236645755,-486.06194557,0.00037976,2]
[314365389,1708236645764,-500.0,0.00037976,2]
[314365390,1708236645774,-500.0,0.00037976,2]
[314365391,1708236645783,-632.16057007,0.00037976,2]
[314365392,1708236645793,-500.0,0.00037976,2]
[314365393,1708236645802,-500.0,0.00037976,2]
[314365394,1708236645812,-500.0,0.00037976,2]
[314365395,1708236645821,-500.0,0.00037976,2]
[314365396,1708236645830,-500.0,0.00037976,2]
[314365397,1708236645840,-176.71622785,0.00037976,2]
[314365398,1708236645849,-514.44,0.00037976,2]
[314365399,1708236645859,-500.0,0.00037976,2]
[314365400,1708236645868,-500.0,0.00037976,2]
[314365401,1708236645877,-524.99026738,0.00037976,2]
[314365402,1708236645887,-500.0,0.00037976,2]
[314365403,1708236645897,-500.0,0.00037976,2]
[314365404,1708236645908,-500.0,0.00037976,2]
[314365405,1708236645918,-500.0,0.00037976,2]
[314365406,1708236645928,-551.66001411,0.00037976,2]
[314365407,1708236645939,-500.0,0.00037976,2]
[314365408,1708236645949,-573.9712019,0.00037976,2]
[314365409,1708236645959,-500.0,0.00037976,2]
[314365410,1708236645969,-546.86079888,0.00037976,2]
[314365411,1708236645978,-500.0,0.00037976,2]
[314365412,1708236645988,-522.64824918,0.00037976,2]
[314365413,1708236645998,-500.0,0.00037976,2]
[314365414,1708236646008,-500.0,0.00037976,2]
[314365415,1708236646017,-500.0,0.00037976,2]
[314365416,1708236646026,-476.83425977,0.00037976,2]
[314365417,1708236646035,-500.0,0.00037976,2]
[314365418,1708236646044,-518.45983741,0.00037976,2]
[314365419,1708236646054,-500.0,0.00037976,2]
[314365420,1708236646063,-500.0,0.00037976,2]
[314365421,1708236646072,-523.35284475,0.00037976,2]
[314365422,1708236646081,-526.68126484,0.00037976,2]
[314365423,1708236646090,-500.0,0.00037976,2]
[314365424,1708236646099,-507.80791282,0.00037976,2]
[314365425,1708236646108,-500.0,0.00037976,2]
[314365426,1708236646117,-500.0,0.00037976,2]
[314365427,1708236646126,-500.0,0.00037976,2]
[314365429,1708236646136,-500.0,0.00037976,2]
[314365431,1708236646145,-500.0,0.00037976,2]
[314365433,1708236646154,-500.0,0.00037976,2]
[314365435,1708236646164,-500.0,0.00037976,2]
[314365436,1708236646173,-500.0,0.00037976,2]
[314365437,1708236646182,-520.52345557,0.00037976,2]
[314365438,1708236646191,-500.0,0.00037976,2]
[314365439,1708236646200,-500.0,0.00037976,2]
[314365440,1708236646209,-500.0,0.00037976,2]
[314365441,1708236646218,-500.0,0.00037976,2]
[314365442,1708236646227,-500.0,0.00037976,2]
[314365443,1708236646237,-500.0,0.00037976,2]
[314365444,1708236646245,-516.14867928,0.00037976,2]
[314365445,1708236646258,-500.0,0.00037976,2]
[314365446,1708236646269,-500.0,0.00037976,2]
[314365447,1708236646280,-879.95,0.00037976,2]
[314365448,1708236646289,-518.16554174,0.00037976,2]
[314365449,1708236646298,-923.67,0.00037976,2]
[314365450,1708236646308,-593.88996901,0.00037976,2]
[314365451,1708236646318,-513.09185832,0.00037976,2]
[314365452,1708236646327,-516.7381414,0.00037976,2]
[314365453,1708236646337,-500.0,0.00037976,2]